bitfinex-derivatives/quotes_BNBF0:USTF0_20250709
["timestamp","ask_amount","ask_price","bid_price","bid_amount"]
[1752096482454,0.26066928,667.81,667.23,1.55189309]
[1752096482657,0.26066928,667.81,667.24,1.55189309]
[1752096482858,0.26066928,667.81,667.25,1.55189309]
[1752096483056,0.26066928,667.81,667.26,1.55189309]
[1752096483258,0.26066928,667.81,667.27,1.55189309]
[1752096483453,0.26066928,667.81,667.28,1.55189309]
[1752096483753,0.26066928,667.81,667.29,1.55189309]
[1752096483954,0.26066928,667.81,667.3,1.55189309]
[1752096484158,0.26066928,667.81,667.31,1.55189309]
[1752096484359,0.26066928,667.81,667.32,1.55189309]
[1752096484558,0.26066928,667.81,667.33,1.55189309]
[1752096484759,0.26066928,667.81,667.34,1.55189309]
[1752096484959,0.26066928,667.81,667.35,1.55189309]
[1752096485256,0.26066928,667.81,667.36,1.55189309]
[1752096485456,0.26066928,667.81,667.37,1.55189309]
[1752096485661,0.26066928,667.81,667.38,1.55189309]
[1752096485861,0.26066928,667.81,667.13,1.68121775]
[1752096486158,0.26066928,667.81,667.14,1.5520195]
[1752096486460,0.26066928,667.81,667.15,1.5520195]
[1752096486660,0.26066928,667.81,667.16,1.5520195]
[1752096486855,0.26066928,667.81,667.17,1.5520195]
[1752096487060,0.26066928,667.81,667.18,1.5520195]
[1752096487257,0.26066928,667.81,667.19,1.5520195]
[1752096487460,0.26066928,667.81,667.2,1.5520195]
[1752096487755,0.26066928,667.81,667.21,1.5520195]
[1752096487959,0.26066928,667.81,667.22,1.5520195]
[1752096488158,0.26066928,667.81,667.23,1.5520195]
[1752096488360,0.26066928,667.81,667.24,1.5520195]
[1752096488660,0.26066928,667.81,667.25,1.5520195]
[1752096488956,0.26066928,667.81,667.26,1.5520195]
[1752096489160,0.26066928,667.81,667.27,1.5520195]
[1752096489357,0.26066928,667.81,667.28,1.5520195]
[1752096489557,0.26066928,667.81,667.29,1.5520195]
[1752096489861,0.26066928,667.81,667.3,1.5520195]
[1752096490060,0.26066928,667.81,667.31,1.5520195]
[1752096490257,0.26066928,667.81,667.32,1.5520195]
[1752096490458,0.26066928,667.81,667.33,1.5520195]
[1752096490759,0.26066928,667.81,667.34,1.5520195]
[1752096491062,0.26066928,667.81,667.35,1.5520195]
[1752096491262,0.26066928,667.81,667.36,1.5520195]
[1752096491460,0.26066928,667.81,667.37,1.5520195]
[1752096491665,0.26066928,667.81,667.38,1.5520195]
[1752096491864,0.26066928,667.81,667.1,1.68121775]
[1752096492066,0.26066928,667.81,667.11,1.55232722]
[1752096492260,0.26066928,667.81,667.12,1.55232722]
[1752096492562,0.26066928,667.81,667.13,1.55232722]
[1752096492761,0.26066928,667.81,667.14,1.55232722]
[1752096492963,0.26066928,667.81,667.15,1.55232722]
[1752096493261,0.26066928,667.81,667.16,1.55232722]
[1752096493461,0.26066928,667.81,667.17,1.55232722]
[1752096493661,0.26066928,667.81,667.18,1.55232722]
[1752096493861,0.26066928,667.81,667.19,1.55232722]
[1752096494064,0.26066928,667.81,667.2,1.55232722]
[1752096494265,0.26066928,667.81,667.21,1.55232722]
[1752096494465,0.26066928,667.81,667.22,1.55232722]
[1752096494762,0.26066928,667.81,667.23,1.55232722]
[1752096494963,0.26066928,667.81,667.24,1.55232722]
[1752096495174,0.26066928,667.81,667.25,1.55232722]
[1752096495370,0.26066928,667.81,667.26,1.55232722]
[1752096495569,0.26066928,667.81,667.27,1.55232722]
[1752096495865,0.26066928,667.81,667.28,1.55232722]
[1752096496067,0.26066928,667.81,667.09,1.68121775]
[1752096496068,0.26066928,667.81,667.29,1.55232722]
[1752096496265,0.26066928,667.81,667.3,1.55232722]
[1752096496465,0.26066928,667.81,667.31,1.55232722]
[1752096496669,0.26066928,667.81,667.32,1.55232722]
[1752096496865,0.26066928,667.81,667.33,1.55232722]
[1752096497066,0.26066928,667.81,667.34,1.55232722]
[1752096497269,0.26066928,667.81,667.35,1.55232722]
[1752096497569,0.26066928,667.81,667.36,1.55232722]
[1752096497769,0.26066928,667.81,667.37,1.55232722]
[1752096497967,0.26066928,667.81,667.38,1.55232722]
[1752096498175,0.26066928,667.81,667.39,1.55232722]
[1752096498371,0.26066928,667.81,667.11,1.68121775]
[1752096498576,0.26066928,667.81,667.12,1.5529683]
[1752096498776,0.26066928,667.81,667.13,1.5529683]
[1752096498979,0.26066928,667.81,667.14,1.5529683]
[1752096499169,0.26066928,667.81,667.15,1.5529683]
[1752096499369,0.26066928,667.81,667.16,1.5529683]
[1752096499673,0.26066928,667.81,667.17,1.5529683]
[1752096499869,0.26066928,667.81,667.18,1.5529683]
[1752096500168,0.26066928,667.81,667.19,1.5529683]
[1752096500379,0.26066928,667.81,666.84,1.928]
[1752096500380,0.26066928,667.81,667.2,1.5529683]
[1752096500582,0.26066928,667.81,667.21,1.5529683]
[1752096500777,0.26066928,667.81,667.22,1.5529683]
[1752096500974,0.26066928,667.81,667.23,1.5529683]
[1752096501170,0.26066928,667.81,667.24,1.5529683]
[1752096501375,0.26066928,667.81,667.25,1.5529683]
[1752096501571,0.26066928,667.81,667.26,1.5529683]
[1752096501775,0.26066928,667.81,667.27,1.5529683]
[1752096502076,0.26066928,667.81,667.28,1.5529683]
[1752096502281,0.26066928,667.81,667.29,1.5529683]
[1752096502474,0.26066928,667.81,667.3,1.5529683]
[1752096502676,0.26066928,667.81,667.31,1.5529683]
[1752096502872,0.26066928,667.81,667.32,1.5529683]
[1752096503071,0.26066928,667.81,667.33,1.5529683]
[1752096503272,0.26066928,667.81,667.34,1.5529683]
[1752096503473,0.26066928,667.81,667.35,1.5529683]
[1752096503676,0.26066928,667.81,667.36,1.5529683]
[1752096503876,0.26066928,667.81,667.37,1.5529683]
[1752096504076,0.26066928,667.81,667.38,1.5529683]
[1752096504276,0.26066928,667.81,667.39,1.5529683]
[1752096504478,0.26066928,667.81,667.4,1.5529683]
[1752096504780,0.26066928,667.81,667.41,1.5529683]
[1752096505078,0.26066928,667.81,667.42,1.5529683]
[1752096505277,0.26066928,667.81,667.11,1.68121775]
[1752096505478,0.26066928,667.81,667.12,1.55475688]
[1752096505677,0.26066928,667.81,667.13,1.55475688]
[1752096505878,0.26066928,667.81,667.14,1.55475688]
[1752096506078,0.26066928,667.81,667.15,1.55475688]
[1752096506278,0.26066928,667.81,667.1,1.68121775]
[1752096506279,0.26066928,667.81,667.16,1.55475688]
[1752096506480,0.26066928,667.81,667.17,1.55475688]
[1752096506677,0.26066928,667.81,667.18,1.55475688]
[1752096506882,0.26066928,667.81,667.19,1.55475688]
[1752096507081,0.26066928,667.81,667.2,1.55475688]
[1752096507283,0.26066928,667.81,667.21,1.55475688]
[1752096507481,0.26066928,667.81,667.22,1.55475688]
[1752096507680,0.26066928,667.81,667.23,1.55475688]
[1752096507883,0.26066928,667.81,667.1,1.68121775]
[1752096507884,0.26066928,667.81,667.24,1.55475688]
[1752096508181,0.26066928,667.81,667.25,1.55475688]
[1752096508384,0.26066928,667.81,667.26,1.55475688]
[1752096508583,0.26066928,667.81,667.27,1.55475688]
[1752096508884,0.26066928,667.81,667.28,1.55475688]
[1752096509080,0.26066928,667.81,667.29,1.55475688]
[1752096509386,0.26066928,667.81,667.3,1.55475688]
[1752096509591,0.26066928,667.81,667.31,1.55475688]
[1752096509782,0.26066928,667.81,667.32,1.55475688]
[1752096510081,0.26066928,667.81,667.33,1.55475688]
[1752096510281,0.26066928,667.81,667.34,1.55475688]
[1752096510481,0.26066928,667.81,667.35,1.55475688]
[1752096510683,0.26066928,667.81,667.36,1.55475688]
[1752096510885,0.26066928,667.81,667.37,1.55475688]
[1752096511181,0.26066928,667.81,667.38,1.55475688]
[1752096511382,0.26066928,667.81,667.39,1.55475688]
[1752096511582,0.26066928,667.81,667.4,1.55475688]
[1752096511785,0.26066928,667.81,667.41,1.55475688]
[1752096511982,0.26066928,667.81,667.42,1.55475688]
[1752096512281,0.26066928,667.81,667.43,1.55475688]
[1752096512481,0.26066928,667.81,667.44,1.55475688]
[1752096512679,0.26066928,667.81,667.45,1.55475688]
[1752096512883,0.26066928,667.81,667.15,4.26221775]
[1752096512884,0.26066928,667.81,667.16,1.68121775]
[1752096513082,0.26066928,667.81,667.17,1.55604825]
[1752096513281,0.26066928,667.81,667.18,1.55604825]
[1752096513484,0.26066928,667.81,667.19,1.55604825]
[1752096513681,0.26066928,667.81,667.2,1.55604825]
[1752096513883,0.26066928,667.81,667.21,1.55604825]
[1752096514081,0.26066928,667.81,667.22,1.55604825]
[1752096514285,0.26066928,667.81,667.23,1.55604825]
[1752096514481,0.26066928,667.81,667.24,1.55604825]
[1752096514685,0.26066928,667.81,667.25,1.55604825]
[1752096514882,0.26066928,667.81,667.26,1.55604825]
[1752096515082,0.26066928,667.81,667.27,1.55604825]
[1752096515385,0.26066928,667.81,667.28,1.55604825]
[1752096515585,0.26066928,667.81,667.29,1.55604825]
[1752096515781,0.26066928,667.81,667.3,1.55604825]
[1752096515981,0.26066928,667.81,667.31,1.55604825]
[1752096516182,0.26066928,667.81,667.32,1.55604825]
[1752096516381,0.26066928,667.81,667.18,1.68121775]
[1752096516382,0.26066928,667.81,667.33,1.55604825]
[1752096516581,0.26066928,667.81,667.34,1.55604825]
[1752096516786,0.26066928,667.81,667.35,1.55604825]
[1752096517081,0.26066928,667.81,667.36,1.55604825]
[1752096517286,0.26066928,667.81,667.37,1.55604825]
[1752096517585,0.26066928,667.81,667.38,1.55604825]
[1752096517786,0.26066928,667.81,667.39,1.55604825]
[1752096517986,0.26066928,667.81,667.4,1.55604825]
[1752096518182,0.26066928,667.81,667.41,1.55604825]
[1752096518381,0.26066928,667.81,667.42,1.55604825]
[1752096518582,0.26066928,667.81,667.43,1.55604825]
[1752096518786,0.26066928,667.81,667.44,1.55604825]
[1752096518984,0.26066928,667.81,667.45,1.55604825]
[1752096519184,0.26066928,667.81,667.18,1.68121775]
[1752096519390,0.26066928,667.81,667.2,1.68121775]
[1752096519587,0.26066928,667.81,667.21,1.55605881]
[1752096519789,0.26066928,667.81,667.22,1.55605881]
[1752096519982,0.26066928,667.81,667.23,1.55605881]
[1752096520184,0.26066928,667.81,667.24,1.55605881]
[1752096520383,0.26066928,667.81,667.2,1.68121775]
[1752096520384,0.26066928,667.81,667.25,1.55605881]
[1752096520588,0.26066928,667.81,667.26,1.55605881]
[1752096520786,0.26066928,667.81,667.19,1.68121775]
[1752096520787,0.26066928,667.81,667.27,1.55605881]
[1752096520985,0.26066928,667.81,667.28,1.55605881]
[1752096521187,0.26066928,667.81,667.29,1.55605881]
[1752096521385,0.26066928,667.81,667.3,1.55605881]
[1752096521589,0.26066928,667.81,667.31,1.55605881]
[1752096521787,0.26066928,667.81,667.32,1.55605881]
[1752096521990,0.26066928,667.81,667.33,1.55605881]
[1752096522192,0.26066928,667.81,667.34,1.55605881]
[1752096522491,0.26066928,667.81,667.35,1.55605881]
[1752096522790,0.26066928,667.81,667.36,1.55605881]
[1752096522990,0.26066928,667.81,667.37,1.55605881]
[1752096523192,0.26066928,667.81,667.38,1.55605881]
[1752096523391,0.26066928,667.81,667.39,1.55605881]
[1752096523693,0.26066928,667.81,667.4,1.55605881]
[1752096523888,0.26066928,667.81,667.41,1.55605881]
[1752096524089,0.26066928,667.81,667.42,1.55605881]
[1752096524292,0.26066928,667.81,667.43,1.55605881]
[1752096524490,0.26066928,667.81,667.44,1.55605881]
[1752096524694,0.26066928,667.81,667.15,2.581]
[1752096524894,0.26066928,667.81,667.16,1.55607493]
[1752096525091,0.26066928,667.81,667.17,1.55607493]
[1752096525295,0.26066928,667.81,667.15,2.581]
[1752096525296,0.26066928,667.81,667.18,1.55607493]
[1752096525595,0.26066928,667.81,667.19,1.55607493]
[1752096525792,0.26066928,667.81,667.2,1.55607493]
[1752096525993,0.26066928,667.81,667.21,1.55607493]
[1752096526296,0.26066928,667.81,667.22,1.55607493]
[1752096526498,0.26066928,667.81,667.23,1.55607493]
[1752096526798,0.26066928,667.81,667.24,1.55607493]
[1752096527097,0.26066928,667.81,667.25,1.55607493]
[1752096527397,0.26066928,667.81,667.26,1.55607493]
[1752096527697,0.26066928,667.81,667.27,1.55607493]
[1752096527895,0.26066928,667.81,667.28,1.55607493]
[1752096528100,0.26066928,667.81,667.29,1.55607493]
[1752096528300,0.26066928,667.81,667.3,1.55607493]
[1752096528496,0.26066928,667.81,667.31,1.55607493]
[1752096528697,0.26066928,667.81,667.32,1.55607493]
[1752096528896,0.26066928,667.81,667.33,1.55607493]
[1752096529097,0.26066928,667.81,667.34,1.55607493]
[1752096529296,0.26066928,667.81,667.35,1.55607493]
[1752096529495,0.26066928,667.81,667.36,1.55607493]
[1752096529700,0.26066928,667.81,667.37,1.55607493]
[1752096529900,0.26066928,667.81,667.38,1.55607493]
[1752096530101,0.26066928,667.81,667.39,1.55607493]
[1752096530297,0.26066928,667.81,667.4,1.55607493]
[1752096530597,0.26066928,667.81,667.41,1.55607493]
[1752096530801,0.26066928,667.81,667.42,1.55607493]
[1752096531001,0.26066928,667.81,667.43,1.55607493]
[1752096531198,0.26066928,667.81,667.15,2.581]
[1752096531502,0.26066928,667.81,667.16,1.55613056]
[1752096531698,0.26066928,667.81,667.17,1.55613056]
[1752096531898,0.26066928,667.81,667.18,1.55613056]
[1752096532097,0.26066928,667.81,667.19,1.55613056]
[1752096532397,0.26066928,667.81,667.2,1.55613056]
[1752096532598,0.26066928,667.81,667.21,1.55613056]
[1752096532797,0.26066928,667.81,667.22,1.55613056]
[1752096533000,0.26066928,667.81,667.23,1.55613056]
[1752096533298,0.26066928,667.81,667.24,1.55613056]
[1752096533501,0.26066928,667.81,667.25,1.55613056]
[1752096533700,0.26066928,667.81,667.26,1.55613056]
[1752096533901,0.26066928,667.81,667.27,1.55613056]
[1752096534097,0.26066928,667.81,667.28,1.55613056]
[1752096534298,0.26066928,667.81,667.29,1.55613056]
[1752096534500,0.26066928,667.81,667.3,1.55613056]
[1752096534701,0.26066928,667.81,667.31,1.55613056]
[1752096534997,0.26066928,667.81,667.32,1.55613056]
[1752096535299,0.26066928,667.81,667.33,1.55613056]
[1752096535503,0.26066928,667.81,667.34,1.55613056]
[1752096535705,0.26066928,667.81,667.35,1.55604872]
[1752096535899,0.26066928,667.81,667.36,1.55604872]
[1752096536098,0.26066928,667.81,667.37,1.55604872]
[1752096536402,0.26066928,667.81,667.38,1.55604872]
[1752096536600,0.26066928,667.81,667.39,1.55604872]
[1752096536899,0.26066928,667.81,667.4,1.55604872]
[1752096537102,0.26066928,667.81,667.41,1.55604872]
[1752096537301,0.26066928,667.81,667.15,2.581]
[1752096537500,0.26066928,667.81,667.16,1.5560154]
[1752096537703,0.26066928,667.81,667.17,1.5560154]
[1752096537904,0.26066928,667.81,667.18,1.5560154]
[1752096538105,0.26066928,667.81,667.19,1.5560154]
[1752096538305,0.26066928,667.81,667.2,1.5560154]
[1752096538506,0.26066928,667.81,667.21,1.5560154]
[1752096538801,0.26066928,667.81,667.22,1.5560154]
[1752096539104,0.26066928,667.81,667.23,1.5560154]
[1752096539303,0.26066928,667.81,667.24,1.5560154]
[1752096539499,0.26066928,667.81,667.25,1.5560154]
[1752096539702,0.26066928,667.81,667.26,1.5560154]
[1752096539905,0.26066928,667.81,667.27,1.5560154]
[1752096540106,0.26066928,667.81,667.28,1.5560154]
[1752096540303,0.26066928,667.81,667.29,1.5560154]
[1752096540503,0.26066928,667.81,667.3,1.5560154]
[1752096540805,0.26066928,667.81,667.31,1.5560154]
[1752096541006,0.26066928,667.81,667.32,1.55598468]
[1752096541206,0.26066928,667.81,667.33,1.55598468]
[1752096541406,0.26066928,667.81,667.34,1.55598468]
[1752096541604,0.26066928,667.81,667.35,1.55598468]
[1752096541905,0.26066928,667.81,667.36,1.55598468]
[1752096542208,0.26066928,667.81,667.37,1.55598468]
[1752096542404,0.26066928,667.81,667.38,1.55598468]
[1752096542703,0.26066928,667.81,667.39,1.55598468]
[1752096542908,0.26066928,667.81,667.4,1.55598468]
[1752096543104,0.26066928,667.81,667.41,1.55598468]
[1752096543308,0.26066928,667.81,667.42,1.55598468]
[1752096543507,0.26066928,667.81,667.43,1.55598468]
[1752096543707,0.26066928,667.81,667.43,2.617]
[1752096548111,0.26066928,667.81,667.44,1.55596566]
[1752096548314,0.26066928,667.81,667.43,2.617]
[1752096562124,0.26066928,667.81,667.44,1.55587951]
[1752096562324,0.26066928,667.81,667.45,1.55587951]
[1752096562522,0.26066928,667.81,667.46,1.55587951]
[1752096562824,0.26066928,667.81,667.47,1.55587951]
[1752096563022,0.26066928,667.81,667.43,2.617]
[1752096563325,0.26066928,667.81,667.44,1.55563699]
[1752096563525,0.26066928,667.81,667.45,1.55563699]
[1752096563722,0.26066928,667.81,667.46,1.55563699]
[1752096563926,0.26066928,667.81,667.47,1.55563699]
[1752096564227,0.26066928,667.81,667.43,2.617]
[1752096564421,0.26066928,667.81,667.44,1.55535849]
[1752096564624,0.26066928,667.81,667.45,1.55535849]
[1752096564924,0.26066928,667.81,667.46,1.55535849]
[1752096565121,0.26066928,667.81,667.47,1.55535849]
[1752096565326,0.26066928,667.81,667.43,2.617]
[1752096565527,0.26066928,667.81,667.44,1.55525605]
[1752096565724,0.26066928,667.81,667.45,1.55525605]
[1752096565923,0.26066928,667.81,667.46,1.55525605]
[1752096566128,0.26066928,667.81,667.43,2.617]
[1752096566427,0.26066928,667.81,667.44,1.55516709]
[1752096566627,0.26066928,667.81,667.45,1.55516709]
[1752096566828,0.26066928,667.81,667.46,1.55516709]
[1752096567029,0.26066928,667.81,667.43,2.617]
[1752096567222,0.26066928,667.81,667.44,1.55516709]
[1752096567428,0.26066928,667.81,667.45,1.55516709]
[1752096567725,0.26066928,667.81,667.46,1.55516709]
[1752096567924,0.26066928,667.81,667.43,2.617]
[1752096568125,0.26066928,667.81,667.44,1.55508824]
[1752096568328,0.26066928,667.81,667.43,2.617]
[1752096568329,0.26066928,667.81,667.45,1.55508824]
[1752096568529,0.26066928,667.81,667.46,1.55508824]
[1752096568729,0.26066928,667.81,667.43,2.617]
[1752096569030,0.26066928,667.81,667.44,1.55501739]
[1752096569231,0.26066928,667.81,667.45,1.55501739]
[1752096569430,0.26066928,667.81,667.46,1.55501739]
[1752096569628,0.26066928,667.81,667.43,2.617]
[1752096569830,0.26066928,667.81,667.44,1.55495312]
[1752096570129,0.26066928,667.81,667.45,1.55495312]
[1752096570329,0.26066928,667.81,667.46,1.55495312]
[1752096570529,0.26066928,667.81,667.43,2.617]
[1752096570730,0.26066928,667.81,667.44,1.55489444]
[1752096570929,0.26066928,667.81,667.45,1.55489444]
[1752096571129,0.26066928,667.81,667.46,1.55489444]
[1752096571328,0.26066928,667.81,667.43,2.617]
[1752096571632,0.26066928,667.81,667.44,1.55485135]
[1752096571831,0.26066928,667.81,667.45,1.55485135]
[1752096572029,0.26066928,667.81,667.46,1.55485135]
[1752096572232,0.26066928,667.81,667.43,2.617]
[1752096572432,0.26066928,667.81,667.44,1.55480198]
[1752096572631,0.26066928,667.81,667.45,1.55480198]
[1752096572930,0.26066928,667.81,667.46,1.55480198]
[1752096573132,0.26066928,667.81,667.43,2.617]
[1752096573332,0.26066928,667.81,667.44,1.55475636]
[1752096573631,0.26066928,667.81,667.45,1.55475636]
[1752096573931,0.26066928,667.81,667.43,2.617]
[1752096574132,0.26066928,667.81,667.44,1.55475636]
[1752096574332,0.26066928,667.81,667.45,1.55475636]
[1752096574530,0.26066928,667.81,667.43,2.617]
[1752096574728,0.26066928,667.81,667.44,1.55471413]
[1752096575030,0.26066928,667.81,667.45,1.55471413]
[1752096575226,0.26066928,667.81,667.43,2.617]
[1752096575428,0.26066928,667.81,667.44,1.55467639]
[1752096575628,0.26066928,667.81,667.45,1.55467639]
[1752096575831,0.26066928,667.81,667.43,2.617]
[1752096576032,0.26066928,667.81,667.44,1.55467639]
[1752096576227,0.26066928,667.81,667.45,1.55467639]
[1752096576433,0.26066928,667.81,667.43,2.617]
[1752096576732,0.26066928,667.81,667.44,1.55464147]
[1752096576930,0.26066928,667.81,667.45,1.55464147]
[1752096577128,0.26066928,667.81,667.43,2.617]
[1752096577430,0.26066928,667.81,667.44,1.55460902]
[1752096577731,0.26066928,667.81,667.45,1.55460902]
[1752096577931,0.26066928,667.81,667.43,2.617]
[1752096578129,0.26066928,667.81,667.44,1.55460902]
[1752096578333,0.26066928,667.81,667.45,1.55460902]
[1752096578531,0.26066928,667.81,667.43,2.617]
[1752096578731,0.26066928,667.81,667.44,1.55457898]
[1752096578933,0.26066928,667.81,667.45,1.55457898]
[1752096579136,0.26066928,667.81,667.43,2.617]
[1752096579336,0.26066928,667.81,667.44,1.5545512]
[1752096579635,0.26066928,667.81,667.45,1.5545512]
[1752096579836,0.26066928,667.81,667.43,2.617]
[1752096580135,0.26066928,667.81,667.44,1.5545512]
[1752096580336,0.26066928,667.81,667.45,1.5545512]
[1752096580535,0.26066928,667.81,667.43,2.617]
[1752096580736,0.26066928,667.81,667.44,1.55452557]
[1752096581035,0.26066928,667.81,667.43,2.617]
[1752096581233,0.26066928,667.81,667.44,1.55452557]
[1752096581435,0.26066928,667.81,667.43,2.617]
[1752096581732,0.26066928,667.81,667.44,1.55450199]
[1752096581937,0.26066928,667.81,667.43,2.617]
[1752096582136,0.26066928,667.81,667.44,1.55450199]
[1752096582433,0.26066928,667.81,667.43,2.617]
[1752096582735,0.26066928,667.81,667.44,1.55448037]
[1752096582936,0.26066928,667.81,667.43,2.617]
[1752096583131,0.26066928,667.81,667.44,1.55448037]
[1752096583332,0.26066928,667.81,667.43,2.617]
[1752096583633,0.26066928,667.81,667.44,1.55446064]
[1752096583834,0.26066928,667.81,667.43,2.617]
[1752096584033,0.26066928,667.81,667.44,1.55446064]
[1752096584235,0.26066928,667.81,667.43,2.617]
[1752096584537,0.26066928,667.81,667.44,1.55444273]
[1752096584734,0.26066928,667.81,667.43,2.617]
[1752096584938,0.26066928,667.81,667.44,1.55444273]
[1752096585135,0.26066928,667.81,667.43,2.617]
[1752096585334,0.26066928,667.81,667.44,1.55442658]
[1752096585535,0.26066928,667.81,667.43,2.617]
[1752096585740,0.26066928,667.81,667.44,1.55442658]
[1752096585939,0.26066928,667.81,667.43,2.617]
[1752096586137,0.26066928,667.81,667.44,1.55442658]
[1752096586341,0.26066928,667.81,667.43,2.617]
[1752096586541,0.26066928,667.81,667.44,1.55441216]
[1752096586741,0.26066928,667.81,667.45,1.55440507]
[1752096586942,0.26066928,667.81,667.43,2.617]
[1752096587140,0.26066928,667.81,667.44,1.55440507]
[1752096587341,0.26066928,667.81,667.43,2.617]
[1752096587541,0.26066928,667.81,667.44,1.55438759]
[1752096587840,0.26066928,667.81,667.43,2.617]
[1752096588041,0.26066928,667.81,667.44,1.55438759]
[1752096588238,0.26066928,667.81,667.43,2.617]
[1752096588437,0.26066928,667.81,667.44,1.55437178]
[1752096588642,0.26066928,667.81,667.43,2.617]
[1752096588942,0.26066928,667.81,667.44,1.55437178]
[1752096589241,0.26066928,667.81,667.43,2.617]
[1752096589443,0.26066928,667.81,667.44,1.55436965]
[1752096589643,0.26066928,667.81,667.43,2.617]
[1752096589838,0.26066928,667.81,667.44,1.55436965]
[1752096590037,0.26066928,667.81,667.45,1.55436965]
[1752096590241,0.26066928,667.81,667.08,1.68517864]
[1752096590542,0.26066928,667.81,667.09,1.55433847]
[1752096590841,0.26066928,667.81,667.1,1.55433847]
[1752096591041,0.26066928,667.81,667.11,1.55433847]
[1752096591241,0.26066928,667.81,667.12,1.55433847]
[1752096591438,0.26066928,667.81,667.13,1.55433847]
[1752096591637,0.26066928,667.81,667.14,1.55433847]
[1752096591838,0.26066928,667.81,667.15,1.55433847]
[1752096592041,0.26066928,667.81,667.16,1.55433847]
[1752096592243,0.26066928,667.81,667.17,1.55433847]
[1752096592440,0.26066928,667.81,667.18,1.55433847]
[1752096592641,0.26066928,667.81,667.19,1.55433847]
[1752096592844,0.26066928,667.81,667.2,1.55433847]
[1752096593045,0.26066928,667.81,667.21,1.55433847]
[1752096593342,0.26066928,667.81,667.22,1.55433847]
[1752096593641,0.26066928,667.81,667.23,1.55433847]
[1752096593840,0.26066928,667.81,667.24,1.55433847]
[1752096594042,0.26066928,667.81,667.25,1.55433847]
[1752096594245,0.26066928,667.81,667.26,1.55433847]
[1752096594440,0.26066928,667.81,667.27,1.55433847]
[1752096594641,0.26066928,667.81,667.28,1.55433847]
[1752096594841,0.26066928,667.81,667.29,1.55433847]
[1752096595045,0.26066928,667.81,667.3,1.55433847]
[1752096595345,0.26066928,667.81,667.31,1.55433847]
[1752096595544,0.26066928,667.81,667.32,1.55433847]
[1752096595739,0.26066928,667.81,667.33,1.55433847]
[1752096596040,0.26066928,667.81,667.34,1.55433847]
[1752096596245,0.26066928,667.81,667.35,1.55433847]
[1752096596442,0.26066928,667.81,667.36,1.55433847]
[1752096596639,0.26066928,667.81,667.37,1.55433847]
[1752096596843,0.26066928,667.81,667.38,1.55433847]
[1752096597043,0.26066928,667.81,667.39,1.55433847]
[1752096597243,0.26066928,667.81,667.4,1.55433847]
[1752096597441,0.26066928,667.81,667.41,1.55433847]
[1752096597642,0.26066928,667.81,667.42,1.55433847]
[1752096597844,0.26066928,667.81,667.43,1.55433847]
[1752096598043,0.26066928,667.81,667.44,1.55433847]
[1752096598245,0.26066928,667.81,667.45,1.55433847]
[1752096598443,0.26066928,667.81,667.46,1.55433847]
[1752096598647,3.34784399,668.28,667.47,1.55433847]
[1752096598844,0.260599,667.88,667.48,1.55433847]
[1752096599048,3.34784399,668.28,667.49,1.55433847]
[1752096599244,3.34784399,668.28,667.5,1.55433847]
[1752096599448,5.57973999,669.1,667.51,1.55433847]
[1752096599449,0.26059608,667.89,667.51,1.55433847]
[1752096599652,3.34784399,668.11,667.52,1.55433847]
[1752096599849,3.34784399,668.11,667.26,1.68517864]
[1752096600046,3.34784399,668.11,667.27,1.55316525]
[1752096600351,3.34784399,668.15,667.3,1.68517864]
[1752096600650,3.34784399,668.13,667.32,1.68517864]
[1752096600844,3.34784399,668.13,667.33,1.55316525]
[1752096601047,5.57973999,668.7,667.34,1.55316525]
[1752096601048,3.34784399,668.15,667.34,1.55316525]
[1752096601245,3.34784399,668.15,667.35,1.55316525]
[1752096601449,3.34784399,668.15,667.36,1.55316525]
[1752096601749,0.26062047,667.96,667.37,1.55316525]
[1752096601946,0.26062047,667.96,667.38,1.55316525]
[1752096602145,0.26062047,667.96,667.39,1.55316525]
[1752096602348,0.26062047,667.96,667.4,1.55316525]
[1752096602545,0.26062047,667.96,667.41,1.55316525]
[1752096602748,0.26062047,667.96,667.42,1.55316525]
[1752096602949,0.26062047,667.96,667.43,1.55316525]
[1752096603146,0.26062047,667.96,667.44,1.55316525]
[1752096603349,0.26062047,667.96,667.45,1.55316525]
[1752096603546,0.26062047,667.96,667.46,1.55316525]
[1752096603744,0.26062047,667.96,667.47,1.55316525]
[1752096603947,0.26062047,667.96,667.48,1.55316525]
[1752096604145,0.26062047,667.96,667.49,1.55316525]
[1752096604345,0.26062047,667.96,667.5,1.55316525]
[1752096604645,0.26062047,667.96,667.51,1.55316525]
[1752096604845,0.26062047,667.96,667.52,1.55316525]
[1752096605045,0.26062047,667.96,667.53,1.55316525]
[1752096605246,0.26062047,667.96,667.54,1.55316525]
[1752096605445,0.26062047,667.96,667.55,1.55316525]
[1752096605650,0.26062047,667.96,667.56,1.55316525]
[1752096605846,0.26062047,667.96,667.57,1.55316525]
[1752096606150,0.26062047,667.96,667.3,1.68517864]
[1752096606350,0.26062047,667.96,667.31,1.55182658]
[1752096606650,0.26062047,667.96,667.32,1.55182658]
[1752096606847,0.26062047,667.96,667.33,1.55182658]